[Event "Rapid della Domenica"]
[Site "Chess.com"]
[Date "2020.05.10"]
[Round "4"]
[White "fisherpez"]
[Black "SanSecondoPR"]
[Result "0-1"]
[WhiteElo "1498"]
[BlackElo "1272"]
[TimeControl "720+3"]
[EndTime "7:38:01 PDT"]
[Termination "SanSecondoPR ha vinto per abbandono"]

1. e3 {[%clk 0:12:02.9]} 1... e5 {[%clk 0:11:59.9]} 2. b3 {[%clk 0:12:05.2]}
2... Nf6 {[%clk 0:11:59.8]} 3. Bb2 {[%clk 0:12:07.4]} 3... Nc6 {[%clk
0:12:00.1]} 4. Nf3 {[%clk 0:12:08.5]} 4... e4 {[%clk 0:11:58.2]} 5. Nd4 {[%clk
0:12:09.7]} 5... Nxd4 {[%clk 0:11:57.1]} 6. Bxd4 {[%clk 0:12:10.9]} 6... Be7
{[%clk 0:11:46.7]} 7. Be2 {[%clk 0:12:11.5]} 7... O-O {[%clk 0:11:46.6]} 8. O-O
{[%clk 0:12:12.1]} 8... d5 {[%clk 0:11:47.4]} 9. c4 {[%clk 0:12:09.7]} 9... c5
{[%clk 0:11:48]} 10. Bb2 {[%clk 0:12:09.9]} 10... d4 {[%clk 0:11:48.5]} 11. exd4
{[%clk 0:12:07.1]} 11... cxd4 {[%clk 0:11:48.9]} 12. d3 {[%clk 0:12:07.5]} 12...
Bf5 {[%clk 0:11:20.3]} 13. dxe4 {[%clk 0:12:07.4]} 13... Bxe4 {[%clk 0:11:15.5]}
14. Bd3 {[%clk 0:12:08.5]} 14... Bc5 {[%clk 0:11:12.1]} 15. a3 {[%clk
0:11:59.3]} 15... a6 {[%clk 0:11:10.2]} 16. b4 {[%clk 0:12:00.7]} 16... Ba7
{[%clk 0:11:08.9]} 17. c5 {[%clk 0:12:01.5]} 17... Qd5 {[%clk 0:10:54.3]} 18. f3
{[%clk 0:12:00]} 18... Bxd3 {[%clk 0:10:43.4]} 19. Qxd3 {[%clk 0:12:00.7]} 19...
Rad8 {[%clk 0:10:42]} 20. Nd2 {[%clk 0:11:57]} 20... Bb8 {[%clk 0:10:34.9]} 21.
Rae1 {[%clk 0:11:44.3]} 21... Rfe8 {[%clk 0:10:30.6]} 22. Rd1 {[%clk 0:11:33.7]}
22... Bf4 {[%clk 0:10:28.1]} 23. Nc4 {[%clk 0:11:22.5]} 23... h5 {[%clk
0:09:07.1]} 24. Kh1 {[%clk 0:11:14.4]} 24... h4 {[%clk 0:08:56]} 25. Bc1 {[%clk
0:11:08.1]} 25... Bb8 {[%clk 0:08:48.4]} 26. Bb2 {[%clk 0:10:57.2]} 26... Nh5
{[%clk 0:08:43.5]} 27. Bc1 {[%clk 0:10:50.6]} 27... Bxh2 {[%clk 0:07:48.8]} 28.
Kxh2 {[%clk 0:10:26.4]} 28... Ng3 {[%clk 0:07:44.4]} 29. Rfe1 {[%clk 0:10:11.2]}
29... Nf5 {[%clk 0:06:56]} 30. Rxe8+ {[%clk 0:09:28.2]} 30... Rxe8 {[%clk
0:06:51.9]} 31. Bb2 {[%clk 0:08:31.3]} 31... Nh6 {[%clk 0:06:27]} 32. Qxd4
{[%clk 0:08:21.4]} 32... Qg5 {[%clk 0:06:24.3]} 33. Nd6 {[%clk 0:07:25.3]} 33...
Qg3+ {[%clk 0:06:17.3]} 34. Kg1 {[%clk 0:07:20.6]} 34... Re2 {[%clk 0:05:58]}
35. Qxg7+ {[%clk 0:06:27.6]} 35... Qxg7 {[%clk 0:05:55.5]} 36. Bxg7 {[%clk
0:06:30.1]} 36... Kxg7 {[%clk 0:05:54.6]} 37. Kf1 {[%clk 0:06:31.5]} 37... Ra2
{[%clk 0:05:45.7]} 38. Nxb7 {[%clk 0:06:29.8]} 38... Rxa3 {[%clk 0:05:38.9]} 39.
Rd4 {[%clk 0:06:31.2]} 39... Nf5 {[%clk 0:05:27.4]} 40. Re4 {[%clk 0:05:53.4]}
40... Ng3+ {[%clk 0:05:23.5]} 41. Kf2 {[%clk 0:05:54]} 41... Nxe4+ {[%clk
0:05:22.9]} 42. fxe4 {[%clk 0:05:56.3]} 42... Rb3 {[%clk 0:05:15.8]} 43. c6
{[%clk 0:05:50.9]} 43... Rxb4 {[%clk 0:05:09.5]} 44. Ke3 {[%clk 0:05:51]} 44...
Rc4 {[%clk 0:05:08.2]} 45. Na5 {[%clk 0:05:51.9]} 45... Rc5 {[%clk 0:05:04.5]}
46. Nb3 {[%clk 0:05:36.7]} 46... Rxc6 {[%clk 0:04:56.9]} 47. Kd4 {[%clk
0:05:36.2]} 47... Rc2 {[%clk 0:04:52.1]} 48. Nc5 {[%clk 0:05:29.8]} 48... Rxg2
{[%clk 0:04:49.4]} 49. Nxa6 {[%clk 0:05:31.1]} 49... h3 {[%clk 0:04:49.1]} 50.
Nc5 {[%clk 0:05:32.2]} 50... h2 {[%clk 0:04:50.2]} 51. Nd3 {[%clk 0:05:34.9]}
51... h1=Q {[%clk 0:04:48.2]} 52. Ke5 {[%clk 0:05:36.8]} 52... Qh5+ {[%clk
0:04:46.2]} 53. Kd4 {[%clk 0:05:38.2]} 53... Rd2 {[%clk 0:04:42.8]} 54. Kc3
{[%clk 0:05:39.1]} 54... Qe2 {[%clk 0:04:38.7]} 55. Nf4 {[%clk 0:05:32.7]} 55...
Rc2+ {[%clk 0:04:34.9]} 56. Kd4 {[%clk 0:05:31.9]} 56... Qd2+ {[%clk 0:04:29.8]}
57. Ke5 {[%clk 0:05:33.6]} 57... f6+ {[%clk 0:04:29.9]} 58. Kf5 {[%clk
0:05:34.3]} 58... Rc5+ {[%clk 0:04:28.1]} 59. Kg4 {[%clk 0:05:27.9]} 59... Rg5+
{[%clk 0:04:25.6]} 60. Kf3 {[%clk 0:05:27.5]} 60... Qc3+ {[%clk 0:04:25.3]} 61.
Kf2 {[%clk 0:05:26.2]} 61... Qg3+ {[%clk 0:04:23.8]} 62. Ke2 {[%clk 0:05:26.7]}
62... Qxf4 {[%clk 0:04:24.4]} 63. e5 {[%clk 0:05:27.2]} 63... Rxe5+ {[%clk
0:04:22.2]} 64. Kd3 {[%clk 0:05:28.1]} 64... Re3+ {[%clk 0:04:20.5]} 65. Kd2
{[%clk 0:05:29.7]} 0-1

[Event "Rapid della Domenica"]
[Site "Chess.com"]
[Date "2020.05.10"]
[Round "4"]
[White "Simo2005"]
[Black "sirmale49"]
[Result "1-0"]
[WhiteElo "1655"]
[BlackElo "1379"]
[TimeControl "720+3"]
[EndTime "7:38:26 PDT"]
[Termination "Simo2005 ha vinto per abbandono"]

1. e4 {[%clk 0:11:57.2]} 1... e5 {[%clk 0:11:57.7]} 2. Nf3 {[%clk 0:11:55.2]}
2... Nc6 {[%clk 0:11:58.9]} 3. d4 {[%clk 0:11:53.2]} 3... exd4 {[%clk
0:11:58.5]} 4. Nxd4 {[%clk 0:11:51.1]} 4... Ne5 {[%clk 0:11:59.8]} 5. Nc3 {[%clk
0:11:33.4]} 5... Bc5 {[%clk 0:11:54]} 6. Nb3 {[%clk 0:11:26.4]} 6... Bb6 {[%clk
0:11:21.4]} 7. Bf4 {[%clk 0:11:09.2]} 7... Qf6 {[%clk 0:11:03.6]} 8. Nd5 {[%clk
0:10:46.9]} 8... Qe6 {[%clk 0:10:27.3]} 9. Nd4 {[%clk 0:08:38.1]} 9... Qd6
{[%clk 0:08:15]} 10. Nb5 {[%clk 0:06:38.4]} 10... Qc5 {[%clk 0:06:31.1]} 11. Qd2
{[%clk 0:06:00]} 11... d6 {[%clk 0:06:19.9]} 12. Be3 {[%clk 0:04:16.3]} 12...
Qc6 {[%clk 0:06:08]} 13. Bxb6 {[%clk 0:04:01.2]} 13... axb6 {[%clk 0:05:49.2]}
14. Nbxc7+ {[%clk 0:03:53.8]} 14... Kd8 {[%clk 0:05:40.6]} 15. Nxa8 {[%clk
0:03:39]} 15... Be6 {[%clk 0:05:31.9]} 16. Naxb6 {[%clk 0:03:25.1]} 16... Ne7
{[%clk 0:05:17.5]} 17. Nxe7 {[%clk 0:03:13.2]} 17... Kxe7 {[%clk 0:05:14]} 18.
Nd5+ {[%clk 0:03:04.4]} 18... Bxd5 {[%clk 0:04:52.7]} 19. exd5 {[%clk
0:02:57.3]} 19... Qa4 {[%clk 0:04:32.4]} 20. a3 {[%clk 0:02:37.2]} 20... Qe4+
{[%clk 0:04:27.6]} 21. Qe2 {[%clk 0:01:55.2]} 21... Qxd5 {[%clk 0:04:18.8]} 22.
f4 {[%clk 0:01:51.2]} 22... Qd4 {[%clk 0:03:44.1]} 23. fxe5 {[%clk 0:01:44]} 1-0

[Event "Rapid della Domenica"]
[Site "Chess.com"]
[Date "2020.05.10"]
[Round "4"]
[White "fausto2p"]
[Black "OMatteoWuO"]
[Result "0-1"]
[WhiteElo "1081"]
[BlackElo "1160"]
[TimeControl "720+3"]
[EndTime "7:39:22 PDT"]
[Termination "OMatteoWuO ha vinto per abbandono"]

1. d4 {[%clk 0:12:02.9]} 1... Nf6 {[%clk 0:12:01]} 2. c4 {[%clk 0:12:03.2]} 2...
g6 {[%clk 0:12:01.8]} 3. Nc3 {[%clk 0:12:04.2]} 3... Bg7 {[%clk 0:12:03.1]} 4.
e4 {[%clk 0:12:05]} 4... d6 {[%clk 0:12:04.8]} 5. f3 {[%clk 0:12:05.8]} 5...
Nbd7 {[%clk 0:12:05]} 6. Be3 {[%clk 0:12:06.1]} 6... e5 {[%clk 0:12:06.5]} 7. d5
{[%clk 0:12:05.2]} 7... O-O {[%clk 0:12:04.5]} 8. g4 {[%clk 0:11:59.1]} 8... Nc5
{[%clk 0:12:00.3]} 9. b3 {[%clk 0:11:43.3]} 9... a5 {[%clk 0:11:47.6]} 10. Nge2
{[%clk 0:11:32.8]} 10... Ne8 {[%clk 0:11:29.4]} 11. Ng3 {[%clk 0:11:24.1]} 11...
Qh4 {[%clk 0:11:22.1]} 12. Bf2 {[%clk 0:11:22.8]} 12... f5 {[%clk 0:10:40.9]}
13. Nxf5 {[%clk 0:11:21.9]} 13... Qf6 {[%clk 0:10:30.4]} 14. Bh4 {[%clk
0:09:30.6]} 14... g5 {[%clk 0:09:51.6]} 15. Bf2 {[%clk 0:09:31]} 15... Bxf5
{[%clk 0:09:30.7]} 16. gxf5 {[%clk 0:09:14.8]} 16... h5 {[%clk 0:09:23]} 17. Qd2
{[%clk 0:09:03.4]} 17... Bh6 {[%clk 0:09:22.7]} 18. Be3 {[%clk 0:08:58.3]} 18...
Kh7 {[%clk 0:08:52.8]} 19. O-O-O {[%clk 0:08:53.1]} 19... Rg8 {[%clk 0:08:31.4]}
20. Be2 {[%clk 0:08:19.1]} 20... g4 {[%clk 0:08:23]} 21. Bxh6 {[%clk 0:08:11.6]}
21... Qxh6 {[%clk 0:08:24]} 22. fxg4 {[%clk 0:07:49.2]} 22... Qxd2+ {[%clk
0:08:24.1]} 23. Kxd2 {[%clk 0:07:45.6]} 23... hxg4 {[%clk 0:08:09.9]} 24. Rdg1
{[%clk 0:07:34.9]} 24... Nf6 {[%clk 0:08:09.2]} 25. Nb5 {[%clk 0:07:21]} 25...
Ncxe4+ {[%clk 0:07:57.8]} 26. Ke1 {[%clk 0:07:10.3]} 26... Rg7 {[%clk
0:07:55.2]} 27. h3 {[%clk 0:05:46.4]} 27... g3 {[%clk 0:07:35.9]} 28. h4 {[%clk
0:05:46.6]} 28... Rag8 {[%clk 0:06:59]} 29. a3 {[%clk 0:05:05.7]} 29... Nf2
{[%clk 0:06:59.2]} 30. h5 {[%clk 0:04:31.1]} 30... Nxh1 {[%clk 0:06:53.8]} 31.
Rxh1 {[%clk 0:04:32.4]} 31... g2 {[%clk 0:06:55.1]} 32. Rg1 {[%clk 0:04:33.5]}
32... Kh6 {[%clk 0:06:31.7]} 33. Bf3 {[%clk 0:04:27.9]} 33... Nxh5 {[%clk
0:06:29.4]} 34. Nc3 {[%clk 0:02:56.5]} 34... Rg3 {[%clk 0:06:24.8]} 35. Bxh5
{[%clk 0:02:47]} 35... Rxc3 {[%clk 0:06:15.3]} 36. Bg6 {[%clk 0:02:38.1]} 36...
Rc1+ {[%clk 0:06:15.2]} 37. Kf2 {[%clk 0:02:35]} 37... Rc2+ {[%clk 0:06:00.6]}
38. Ke1 {[%clk 0:02:27.3]} 38... Kg5 {[%clk 0:05:48.8]} 39. Bh7 {[%clk
0:01:11.5]} 39... Rh8 {[%clk 0:05:46.9]} 40. Kd1 {[%clk 0:00:39.4]} 40... Ra2
{[%clk 0:05:33.6]} 41. Ke1 {[%clk 0:00:29.1]} 41... Rxh7 {[%clk 0:05:34]} 0-1

[Event "Rapid della Domenica"]
[Site "Chess.com"]
[Date "2020.05.10"]
[Round "4"]
[White "Mrtre7"]
[Black "sergiodone"]
[Result "1-0"]
[WhiteElo "1476"]
[BlackElo "1502"]
[TimeControl "720+3"]
[EndTime "7:45:33 PDT"]
[Termination "Mrtre7 ha vinto per tempo"]

1. d4 {[%clk 0:12:02.9]} 1... Nf6 {[%clk 0:11:58]} 2. c4 {[%clk 0:12:03.7]} 2...
c5 {[%clk 0:11:59.4]} 3. d5 {[%clk 0:12:03.7]} 3... b5 {[%clk 0:12:00.4]} 4.
cxb5 {[%clk 0:12:03.4]} 4... a6 {[%clk 0:12:01.6]} 5. b6 {[%clk 0:12:05.3]} 5...
Qxb6 {[%clk 0:12:00.8]} 6. Nc3 {[%clk 0:12:05.7]} 6... d6 {[%clk 0:12:02]} 7. e4
{[%clk 0:12:07.2]} 7... Nbd7 {[%clk 0:12:02.7]} 8. Nf3 {[%clk 0:12:06.6]} 8...
g6 {[%clk 0:12:03.8]} 9. Be2 {[%clk 0:11:57.2]} 9... Bg7 {[%clk 0:12:04.7]} 10.
O-O {[%clk 0:11:58.2]} 10... O-O {[%clk 0:12:06.3]} 11. Be3 {[%clk 0:11:51.5]}
11... Rb8 {[%clk 0:12:06.8]} 12. Rb1 {[%clk 0:11:41]} 12... Qa7 {[%clk
0:12:08.1]} 13. Nd2 {[%clk 0:11:32.6]} 13... Qc7 {[%clk 0:11:16.4]} 14. Nc4
{[%clk 0:11:21.8]} 14... Bb7 {[%clk 0:10:58.8]} 15. Qc2 {[%clk 0:10:33.7]} 15...
Rfe8 {[%clk 0:10:55.4]} 16. b4 {[%clk 0:10:27.9]} 16... cxb4 {[%clk 0:10:08.1]}
17. Rxb4 {[%clk 0:10:27.2]} 17... Nc5 {[%clk 0:10:10]} 18. Rfb1 {[%clk 0:10:17]}
18... Ba8 {[%clk 0:10:09.4]} 19. Nb6 {[%clk 0:09:40.2]} 19... Bb7 {[%clk
0:09:00.5]} 20. Nca4 {[%clk 0:09:16.4]} 20... Nfxe4 {[%clk 0:08:51.9]} 21. Rxe4
{[%clk 0:09:07]} 21... Qd8 {[%clk 0:07:27.1]} 22. Bxc5 {[%clk 0:07:16.7]} 22...
dxc5 {[%clk 0:07:22.8]} 23. Nxc5 {[%clk 0:07:16.9]} 23... Ba8 {[%clk 0:07:12.7]}
24. Nxa8 {[%clk 0:05:53.9]} 24... Rxa8 {[%clk 0:07:07.5]} 25. Bxa6 {[%clk
0:05:32.3]} 25... Qa5 {[%clk 0:05:43.3]} 26. Bb5 {[%clk 0:03:58.8]} 26... Rec8
{[%clk 0:05:35.5]} 27. Rc4 {[%clk 0:03:35]} 27... Qxa2 {[%clk 0:05:16.3]} 28.
Qxa2 {[%clk 0:02:51.6]} 28... Rxa2 {[%clk 0:05:16.2]} 29. g3 {[%clk 0:02:39.2]}
29... h5 {[%clk 0:05:09.2]} 30. Ne4 {[%clk 0:02:24.9]} 30... Rb8 {[%clk
0:04:46.1]} 31. Rcb4 {[%clk 0:02:17.4]} 31... Rd8 {[%clk 0:04:41.4]} 32. Bc4
{[%clk 0:02:13.8]} 32... Ra3 {[%clk 0:04:27]} 33. Rb8 {[%clk 0:02:13.4]} 33...
Rxb8 {[%clk 0:04:14.1]} 34. Rxb8+ {[%clk 0:02:14.9]} 34... Kh7 {[%clk 0:04:16]}
35. Ng5+ {[%clk 0:01:48.8]} 35... Kh6 {[%clk 0:03:01.8]} 36. Nxf7+ {[%clk
0:01:50.1]} 36... Kh7 {[%clk 0:03:02.7]} 37. Re8 {[%clk 0:01:29.7]} 37... Bf6
{[%clk 0:03:03.7]} 38. h4 {[%clk 0:01:25.7]} 38... Kg7 {[%clk 0:02:56.6]} 39. d6
{[%clk 0:01:12.9]} 39... Ra1+ {[%clk 0:02:46]} 40. Kg2 {[%clk 0:01:14.4]} 40...
exd6 {[%clk 0:02:36.8]} 41. Nxd6 {[%clk 0:01:13.5]} 41... Rd1 {[%clk 0:02:13]}
42. Ne4 {[%clk 0:01:05.8]} 42... Ba1 {[%clk 0:02:01.6]} 43. Rg8+ {[%clk
0:01:05.9]} 43... Kh6 {[%clk 0:01:57.4]} 44. Ng5 {[%clk 0:01:01.6]} 44... Bg7
{[%clk 0:01:25.6]} 45. Ne6 {[%clk 0:00:59.1]} 45... Ba1 {[%clk 0:01:24.5]} 46.
Nf4 {[%clk 0:00:53.5]} 46... Be5 {[%clk 0:01:06.5]} 47. Nxg6 {[%clk 0:00:40.2]}
47... Bg7 {[%clk 0:00:58]} 48. Bf7 {[%clk 0:00:29.2]} 48... Rd6 {[%clk
0:00:38.2]} 49. Nf4 {[%clk 0:00:30.5]} 1-0

[Event "Rapid della Domenica"]
[Site "Chess.com"]
[Date "2020.05.10"]
[Round "5"]
[White "SanSecondoPR"]
[Black "crippo"]
[Result "0-1"]
[WhiteElo "1266"]
[BlackElo "1508"]
[TimeControl "720+3"]
[EndTime "7:52:01 PDT"]
[Termination "crippo ha vinto per abbandono"]

1. e4 {[%clk 0:12:02.9]} 1... e5 {[%clk 0:12:01.7]} 2. d4 {[%clk 0:12:03.7]}
2... exd4 {[%clk 0:12:03.6]} 3. c3 {[%clk 0:12:04.8]} 3... dxc3 {[%clk
0:12:04.7]} 4. Bc4 {[%clk 0:12:05.2]} 4... Nc6 {[%clk 0:12:06.6]} 5. bxc3 {[%clk
0:12:01]} 5... d6 {[%clk 0:12:08.5]} 6. Nf3 {[%clk 0:11:56.2]} 6... Nf6 {[%clk
0:12:10.5]} 7. O-O {[%clk 0:11:53.9]} 7... Be7 {[%clk 0:12:12.1]} 8. Bb2 {[%clk
0:11:43.6]} 8... O-O {[%clk 0:12:11.4]} 9. Nbd2 {[%clk 0:11:43.9]} 9... Bg4
{[%clk 0:12:09.2]} 10. Qc2 {[%clk 0:11:39.5]} 10... Bh5 {[%clk 0:12:00.8]} 11.
Nd4 {[%clk 0:11:34.3]} 11... Ng4 {[%clk 0:11:59]} 12. f3 {[%clk 0:11:15.7]}
12... Ne3 {[%clk 0:12:00.5]} 13. Qd3 {[%clk 0:11:12.9]} 13... Nxf1 {[%clk
0:12:01.1]} 14. Rxf1 {[%clk 0:11:12.5]} 14... Ne5 {[%clk 0:11:54.5]} 15. Qc2
{[%clk 0:11:06.8]} 15... Nxc4 {[%clk 0:11:38.2]} 16. Nxc4 {[%clk 0:11:06.8]}
16... Bg6 {[%clk 0:11:21.3]} 17. Ne3 {[%clk 0:10:59.9]} 17... Re8 {[%clk
0:11:13.7]} 18. Ndf5 {[%clk 0:10:56]} 18... Bf6 {[%clk 0:11:09]} 19. g3 {[%clk
0:10:47.8]} 19... Qd7 {[%clk 0:10:43.6]} 20. Ng4 {[%clk 0:10:32.8]} 20... Bd8
{[%clk 0:10:27.9]} 21. c4 {[%clk 0:10:05.1]} 21... Bxf5 {[%clk 0:10:26.1]} 22.
exf5 {[%clk 0:10:01.8]} 22... h5 {[%clk 0:10:26.8]} 23. Ne3 {[%clk 0:09:56.7]}
23... Rxe3 {[%clk 0:10:25.4]} 0-1

[Event "Rapid della Domenica"]
[Site "Chess.com"]
[Date "2020.05.10"]
[Round "5"]
[White "BAKR1980"]
[Black "GB86_CHESS"]
[Result "1-0"]
[WhiteElo "1738"]
[BlackElo "1692"]
[TimeControl "720+3"]
[EndTime "7:59:46 PDT"]
[Termination "BAKR1980 ha vinto per abbandono"]

1. c4 {[%clk 0:12:02.9]} 1... d6 {[%clk 0:11:59.4]} 2. Nc3 {[%clk 0:12:00.3]}
2... e5 {[%clk 0:12:00.7]} 3. Nf3 {[%clk 0:11:58]} 3... Nd7 {[%clk 0:11:57.9]}
4. e3 {[%clk 0:11:52.8]} 4... Ngf6 {[%clk 0:11:59.7]} 5. d4 {[%clk 0:11:47.6]}
5... exd4 {[%clk 0:11:58.3]} 6. exd4 {[%clk 0:11:42.7]} 6... Be7 {[%clk
0:12:00.1]} 7. Bd3 {[%clk 0:11:33.9]} 7... O-O {[%clk 0:12:01]} 8. O-O {[%clk
0:10:51.2]} 8... b6 {[%clk 0:11:59]} 9. Re1 {[%clk 0:10:33.3]} 9... Bb7 {[%clk
0:11:59.4]} 10. Bf4 {[%clk 0:10:26.4]} 10... Re8 {[%clk 0:11:59.4]} 11. b3
{[%clk 0:10:19.1]} 11... h6 {[%clk 0:10:38.3]} 12. d5 {[%clk 0:09:58]} 12... Nf8
{[%clk 0:10:26.4]} 13. Nd4 {[%clk 0:09:43.7]} 13... N8h7 {[%clk 0:10:12.4]} 14.
Nf5 {[%clk 0:09:31.4]} 14... Bf8 {[%clk 0:10:12.3]} 15. Rxe8 {[%clk 0:09:09.2]}
15... Qxe8 {[%clk 0:10:12.6]} 16. Qd2 {[%clk 0:09:03.9]} 16... Qd7 {[%clk
0:10:10.7]} 17. Nd4 {[%clk 0:08:49.6]} 17... Re8 {[%clk 0:10:08.9]} 18. f3
{[%clk 0:08:43.4]} 18... Nh5 {[%clk 0:10:02]} 19. Be3 {[%clk 0:08:33.4]} 19...
a6 {[%clk 0:09:33.6]} 20. b4 {[%clk 0:08:24.8]} 20... N5f6 {[%clk 0:08:19.6]}
21. a4 {[%clk 0:08:06.5]} 21... g5 {[%clk 0:08:02]} 22. a5 {[%clk 0:07:54.9]}
22... bxa5 {[%clk 0:07:58.5]} 23. Rxa5 {[%clk 0:07:48.4]} 23... Bc8 {[%clk
0:07:57.2]} 24. b5 {[%clk 0:07:39.6]} 24... axb5 {[%clk 0:07:54.5]} 25. Ncxb5
{[%clk 0:07:33]} 25... Qe7 {[%clk 0:07:55.2]} 26. Bf2 {[%clk 0:07:26.6]} 26...
Bd7 {[%clk 0:07:49.8]} 27. Nxc7 {[%clk 0:06:55.8]} 27... Rc8 {[%clk 0:07:46.9]}
28. Ncb5 {[%clk 0:06:48.2]} 28... Bg7 {[%clk 0:07:46]} 29. Ra7 {[%clk
0:06:41.9]} 29... Qe5 {[%clk 0:07:27]} 30. Bg3 {[%clk 0:06:30.2]} 30... Qe7
{[%clk 0:07:16.5]} 31. Nc6 {[%clk 0:06:19.6]} 31... Bxc6 {[%clk 0:07:14.9]} 1-0

[Event "Rapid della Domenica"]
[Site "Chess.com"]
[Date "2020.05.10"]
[Round "5"]
[White "Ollarov"]
[Black "Mrtre7"]
[Result "1-0"]
[WhiteElo "1993"]
[BlackElo "1474"]
[TimeControl "720+3"]
[EndTime "8:01:51 PDT"]
[Termination "Ollarov ha vinto per scaccomatto"]

1. e4 {[%clk 0:11:30.6]} 1... c5 {[%clk 0:11:58.7]} 2. a3 {[%clk 0:11:30.3]}
2... e6 {[%clk 0:11:47.2]} 3. b4 {[%clk 0:11:27]} 3... cxb4 {[%clk 0:11:43.5]}
4. axb4 {[%clk 0:11:27.4]} 4... d5 {[%clk 0:10:41.3]} 5. e5 {[%clk 0:10:46.2]}
5... Nc6 {[%clk 0:10:42.4]} 6. d4 {[%clk 0:10:43.1]} 6... Qb6 {[%clk 0:10:39]}
7. Nf3 {[%clk 0:10:00]} 7... Bxb4+ {[%clk 0:10:26.2]} 8. c3 {[%clk 0:10:01.5]}
8... Be7 {[%clk 0:09:36.3]} 9. Bd3 {[%clk 0:09:43.3]} 9... f6 {[%clk 0:08:03.3]}
10. exf6 {[%clk 0:09:16.3]} 10... Bxf6 {[%clk 0:07:43.4]} 11. O-O {[%clk
0:09:19.2]} 11... Nge7 {[%clk 0:07:43.4]} 12. Na3 {[%clk 0:09:12.1]} 12... O-O
{[%clk 0:07:42.6]} 13. Nb5 {[%clk 0:09:12.6]} 13... e5 {[%clk 0:06:39.8]} 14.
dxe5 {[%clk 0:09:11.3]} 14... Nxe5 {[%clk 0:06:31.3]} 15. Nxe5 {[%clk 0:09:13]}
15... Bxe5 {[%clk 0:06:17.3]} 16. Be3 {[%clk 0:09:15.1]} 16... Qd8 {[%clk
0:06:11]} 17. Nxa7 {[%clk 0:09:11.7]} 17... Bxc3 {[%clk 0:06:00.9]} 18. Ra3
{[%clk 0:09:05.4]} 18... d4 {[%clk 0:05:54.2]} 19. Bg5 {[%clk 0:09:07.1]} 19...
Qd6 {[%clk 0:04:55.2]} 20. Nb5 {[%clk 0:08:47.1]} 20... Bg4 {[%clk 0:02:43.8]}
21. Nxd6 {[%clk 0:08:39.7]} 21... Bxd1 {[%clk 0:02:44.9]} 22. Bc4+ {[%clk
0:08:37.8]} 22... Kh8 {[%clk 0:02:38.6]} 23. Nf7+ {[%clk 0:08:35.2]} 23... Rxf7
{[%clk 0:02:32.5]} 24. Rxa8+ {[%clk 0:08:35.4]} 24... Ng8 {[%clk 0:02:33.7]} 25.
Rxd1 {[%clk 0:08:33.5]} 25... Rc7 {[%clk 0:02:12.4]} 26. Rxg8# {[%clk
0:08:33.8]} 1-0

[Event "Rapid della Domenica"]
[Site "Chess.com"]
[Date "2020.05.10"]
[Round "5"]
[White "OMatteoWuO"]
[Black "ferrariand"]
[Result "1-0"]
[WhiteElo "1182"]
[BlackElo "1518"]
[TimeControl "720+3"]
[EndTime "8:04:34 PDT"]
[Termination "OMatteoWuO ha vinto per abbandono"]

1. d4 {[%clk 0:12:02.9]} 1... d5 {[%clk 0:12:00.7]} 2. c4 {[%clk 0:12:04.2]}
2... e6 {[%clk 0:11:54.8]} 3. Nc3 {[%clk 0:12:03.9]} 3... Nf6 {[%clk 0:11:55.8]}
4. Bd2 {[%clk 0:12:04.3]} 4... Be7 {[%clk 0:11:46]} 5. Nf3 {[%clk 0:11:54]} 5...
O-O {[%clk 0:11:46]} 6. e3 {[%clk 0:11:52.8]} 6... Nbd7 {[%clk 0:11:46.2]} 7.
Be2 {[%clk 0:11:47.6]} 7... dxc4 {[%clk 0:11:44.8]} 8. Bxc4 {[%clk 0:11:47.4]}
8... Nd5 {[%clk 0:11:46.1]} 9. Nxd5 {[%clk 0:11:37.5]} 9... exd5 {[%clk
0:11:40.6]} 10. Bxd5 {[%clk 0:11:35.9]} 10... Nf6 {[%clk 0:11:41.8]} 11. Bb3
{[%clk 0:11:34.5]} 11... Bg4 {[%clk 0:11:38.2]} 12. O-O {[%clk 0:11:33.5]} 12...
Ne4 {[%clk 0:11:29.4]} 13. Bc3 {[%clk 0:11:11.8]} 13... c5 {[%clk 0:11:03.1]}
14. h3 {[%clk 0:11:05.8]} 14... Bh5 {[%clk 0:10:50.2]} 15. Bc2 {[%clk
0:10:23.9]} 15... Nxc3 {[%clk 0:10:45.9]} 16. bxc3 {[%clk 0:10:00.7]} 16... cxd4
{[%clk 0:10:37]} 17. cxd4 {[%clk 0:10:00.7]} 17... Rc8 {[%clk 0:10:36.6]} 18.
Qd3 {[%clk 0:10:00.7]} 18... Bg6 {[%clk 0:10:37.2]} 19. e4 {[%clk 0:09:52.9]}
19... Bf6 {[%clk 0:10:12.7]} 20. Ne5 {[%clk 0:09:14.4]} 20... Bxe5 {[%clk
0:09:54]} 21. dxe5 {[%clk 0:09:13.9]} 21... Qc7 {[%clk 0:09:14.3]} 22. Bb3
{[%clk 0:08:51.1]} 22... Qxe5 {[%clk 0:09:10.5]} 23. Bd5 {[%clk 0:08:33.9]}
23... Rfd8 {[%clk 0:09:01.7]} 24. f3 {[%clk 0:08:28.5]} 24... Kh8 {[%clk
0:07:41.2]} 25. Rac1 {[%clk 0:08:02.3]} 25... Rxc1 {[%clk 0:07:29.2]} 26. Rxc1
{[%clk 0:08:02.1]} 26... Qb2 {[%clk 0:07:10]} 27. Qc2 {[%clk 0:07:33.5]} 27...
Qxc2 {[%clk 0:06:57.2]} 28. Rxc2 {[%clk 0:07:29.2]} 28... h6 {[%clk 0:06:34.4]}
29. Bxb7 {[%clk 0:07:24.8]} 29... Rb8 {[%clk 0:06:12.7]} 30. Rc8+ {[%clk
0:07:20.6]} 30... Rxc8 {[%clk 0:06:10.4]} 31. Bxc8 {[%clk 0:07:20.9]} 31... f6
{[%clk 0:06:10.9]} 32. Be6 {[%clk 0:07:19.3]} 32... Kh7 {[%clk 0:06:07]} 33. Kf2
{[%clk 0:07:19.8]} 33... Be8 {[%clk 0:06:07.2]} 34. Ke3 {[%clk 0:07:19.3]} 34...
Kg6 {[%clk 0:06:01]} 35. f4 {[%clk 0:06:56.9]} 35... Bc6 {[%clk 0:05:45.4]} 36.
g3 {[%clk 0:06:54.2]} 36... Bb5 {[%clk 0:05:08.5]} 37. h4 {[%clk 0:06:49.2]}
37... Kh7 {[%clk 0:05:02.3]} 38. e5 {[%clk 0:06:43.6]} 38... fxe5 {[%clk
0:04:37.9]} 39. fxe5 {[%clk 0:06:44.7]} 39... Kg6 {[%clk 0:04:39]} 40. Kd4
{[%clk 0:06:44.5]} 40... Bc6 {[%clk 0:04:34.5]} 41. Kc5 {[%clk 0:06:42.5]} 41...
Be4 {[%clk 0:04:30.4]} 42. Kd6 {[%clk 0:06:34.1]} 42... Kh7 {[%clk 0:04:10.2]}
43. Bf7 {[%clk 0:06:29.3]} 43... g5 {[%clk 0:04:04.1]} 44. e6 {[%clk 0:06:28.6]}
44... gxh4 {[%clk 0:03:58]} 45. gxh4 {[%clk 0:06:29.5]} 1-0